Workbook

Sheet Cover
A3: Navigator
C5: =Client_Name -> SumProduct Pty Limited
C6: =Model_Name -> SP Vertical RainCloud Chart - Complete.xlsm
C14: Primary Developer: Sam Ngo
C16: General Cover Notes:
C17: Example of a Vertical Raincloud Chart.
C21: Any queries, please e-mail: | G21: Sam.Ngo@sumproduct.com
C22: Website: | G22: www.sumproduct.com

Sheet Navigator
A1: Navigator
A2: =Model_Name -> SP Vertical RainCloud Chart - Complete.xlsm
A3: Navigator
E4: Error Checks: | G4: =Overall_Error_Check -> 0
B7: 1 | C7: Table of Contents
F9: Cover
F10: Style Guide
F11: Model Parameters
F12: Vertical Raincloud - 1 Cloud
F13: Vertical Raincloud - 3 Clouds
F14: Error Checks

Sheet Style Guide
A1: =IF(ISERROR(RIGHT(CELL("filename",A1),LEN(CELL("filename",A1))-FIND("]",CELL("filename",A1)))), "", RIGHT(CELL("filename",A1),LEN(CELL("filename",A1))-FIND("]",CELL("filename",A1)))) -> Style Guide
A2: =Model_Name -> SP Vertical RainCloud Chart - Complete.xlsm
A3: Navigator
E4: Error Checks: | I4: =Overall_Error_Check -> 0
B6: =MAX($B$5:$B5)+1 -> 1 | C6: Formatting of Headers / Dividers
C8: Description | I8: Display | K8: Style Name
C10: Sheet Title | I10: =C10 -> Sheet Title | K10: Sheet Title
C11: Model Name | I11: =C11 -> Model Name | K11: Model Name
C13: Header 1 | I13: =C13 -> Header 1 | K13: Header 1
C14: Header 2 | I14: =C14 -> Header 2 | K14: Header 2
C15: Header 3 | I15: =C15 -> Header 3 | K15: Header 3
C16: Header 4 | I16: =C16 -> Header 4 | K16: Header 4
C18: Notes | I18: =C18 -> Notes | K18: Notes
C20: Table Heading | I20: =C20 -> Table Heading | K20: Table Heading
B23: =MAX($B$5:$B22)+1 -> 2 | C23: Individual Cell Styles
C25: Description | I25: Display | K25: Style Name
C27: Assumption | I27: Assumption | K27: =C27 -> Assumption
C29: Constraint | I29: =C29 -> Constraint | K29: =C29 -> Constraint
C31: Empty | K31: =C31 -> Empty
C33: Error Check | I33: 0 | K33: =C33 -> Error Check
C35: Hyperlink | I35: Hyperlink | K35: =C35 -> Hyperlink
C37: Internal Reference | I37: ='Error Checks'!E12 -> Example | K37: =C37 -> Internal Reference
C39: Line Calculation | I39: 77 | K39: Line Calc
C41: Line Total | I41: =I39 -> 77 | K41: =C41 -> Line Total
C43: Parameter | I43: 365 | K43: =C43 -> Parameter
C45: Range Name Description | I45: Not_Named | K45: =C45 -> Range Name Description
C47: Row Reference | I47: =ROW(C47) -> 47 | K47: Row Ref
C49: Row Summary | I49: =I41 -> 77 | K49: =C49 -> Row Summary
C51: Units | I51: A$ | K51: =C51 -> Units
C53: WIP | K53: =C53 -> WIP
B56: =MAX($B$5:$B55)+1 -> 3 | C56: Numerical Styles
C58: Description | I58: Display | K58: Style Name
C60: Comma | I60: 123456.789 | K60: =C60 -> Comma
C62: Comma [0] | I62: -123456.789 | K62: Comma [0]
C64: Currency | I64: 123456.789 | K64: Currency
C66: Currency [0] | I66: 123456.789 | K66: Currency [0]
C68: Date | I68: =TODAY() -> 2022-12-06 | K68: =C68 -> Date
C70: Date Heading | I70: =TODAY() -> 2022-12-06 | K70: =C70 -> Date Heading
C72: Numbers 0 | I72: -123456.789 | K72: =C72 -> Numbers 0
C74: Percent | I74: 0.5 | K74: =C74 -> Percent

Sheet Model Parameters
A1: =IF(ISERROR(RIGHT(CELL("filename",A1),LEN(CELL("filename",A1))-FIND("]",CELL("filename",A1)))), "", RIGHT(CELL("filename",A1),LEN(CELL("filename",A1))-FIND("]",CELL("filename",A1)))) -> Model Parameters
A2: =Model_Name -> SP Vertical RainCloud Chart - Complete.xlsm
A3: Navigator
E4: Error Checks: | I4: =Overall_Error_Check -> 0
B6: =MAX($B$5:$B5)+1 -> 1 | C6: General
C8: Key Inputs
E10: General
E11: Model Name | G11: =IF(ISERROR(OR(FIND("[",CELL("filename",A1)),FIND("]",CELL("filename",A1)))),"",MID(CELL("filename",A1),FIND("[",CELL("filename",A1))+1,FIND("]",CELL("filename",A1))-FIND("[",CELL("filename",A1))-1)) -> SP Vertical RainCloud Chart - Complete.xlsm
E12: Client Name | G12: SumProduct Pty Limited
B15: =MAX($B$5:$B14)+1 -> 2 | C15: General Range Names
C17: Technical Assumptions
E19: Days in Year | G19: 365
E20: Months in Month | G20: 1
E21: Months in Quarter | G21: 3
E22: Months in Half Yr | G22: 6
E23: Months in Year | G23: 12
E24: Quarters in Year | G24: 4
E26: Rounding Accuracy | G26: 5
E28: Very Large Number | G28: 1e+99
E29: Very Small Number | G29: 1e-08
E31: Thousand | G31: 1000

Sheet Vertical Raincloud - 1 Cloud
A1: =IF(ISERROR(RIGHT(CELL("filename",A1),LEN(CELL("filename",A1))-FIND("]",CELL("filename",A1)))), "", RIGHT(CELL("filename",A1),LEN(CELL("filename",A1))-FIND("]",CELL("filename",A1)))) -> Vertical Raincloud - 1 Cloud
A2: =Model_Name -> SP Vertical RainCloud Chart - Complete.xlsm
A3: Navigator
B4: Error Checks: | F4: =Overall_Error_Check -> 0
B6: =MAX($B$5:$B5)+1 -> 1 | C6: Vertical Raincloud Chart
D9: Cloud 1 | E9: Cloud 1: 1st position | F9: Cloud 1: X-position | G9: Cloud 1: Distribution | J9: Location | K9: 1.5
D10: 27 | E10: =COUNTIF(D$10:D10,D10) -> 1 | F10: =IF(E10=1,$K$9,F9+$K$10) -> 1.5 | G10: =Cloud[[#This Row],[Cloud 1]] -> 27 | J10: Length | K10: 0.1
D11: 18 | E11: =COUNTIF(D$10:D11,D11) -> 1 | F11: 1.5 | G11: =Cloud[[#This Row],[Cloud 1]] -> 18
D12: 95 | E12: =COUNTIF(D$10:D12,D12) -> 1 | F12: 1.5 | G12: =Cloud[[#This Row],[Cloud 1]] -> 95 | J12: Percentile | K12: Percentile: Cloud 1
D13: 90 | E13: =COUNTIF(D$10:D13,D13) -> 1 | F13: 1.5 | G13: =Cloud[[#This Row],[Cloud 1]] -> 90 | J13: 0 | K13: =PERCENTILE(Cloud[Cloud 1],Percentile_Table[[#This Row],[Percentile]]) -> 1
D14: 53 | E14: =COUNTIF(D$10:D14,D14) -> 1 | F14: 1.5 | G14: =Cloud[[#This Row],[Cloud 1]] -> 53 | J14: 0.1 | K14: =PERCENTILE(Cloud[Cloud 1],Percentile_Table[[#This Row],[Percentile]]) -> 11.9
D15: 17 | E15: =COUNTIF(D$10:D15,D15) -> 1 | F15: 1.5 | G15: =Cloud[[#This Row],[Cloud 1]] -> 17 | J15: 0.25 | K15: =PERCENTILE(Cloud[Cloud 1],Percentile_Table[[#This Row],[Percentile]]) -> 20.5
D16: 92 | E16: =COUNTIF(D$10:D16,D16) -> 1 | F16: 1.5 | G16: =Cloud[[#This Row],[Cloud 1]] -> 92 | J16: 0.5 | K16: =PERCENTILE(Cloud[Cloud 1],Percentile_Table[[#This Row],[Percentile]]) -> 43.5
D17: 93 | E17: =COUNTIF(D$10:D17,D17) -> 1 | F17: 1.5 | G17: =Cloud[[#This Row],[Cloud 1]] -> 93 | J17: 0.75 | K17: =PERCENTILE(Cloud[Cloud 1],Percentile_Table[[#This Row],[Percentile]]) -> 64.75
D18: 18 | E18: =COUNTIF(D$10:D18,D18) -> 2 | F18: 1.6 | G18: =Cloud[[#This Row],[Cloud 1]] -> 18 | J18: 0.9 | K18: =PERCENTILE(Cloud[Cloud 1],Percentile_Table[[#This Row],[Percentile]]) -> 90
D19: 15 | E19: =COUNTIF(D$10:D19,D19) -> 1 | F19: 1.5 | G19: =Cloud[[#This Row],[Cloud 1]] -> 15 | J19: 1 | K19: =PERCENTILE(Cloud[Cloud 1],Percentile_Table[[#This Row],[Percentile]]) -> 99
D20: 31 | E20: =COUNTIF(D$10:D20,D20) -> 1 | F20: 1.5 | G20: =Cloud[[#This Row],[Cloud 1]] -> 31
D21: 9 | E21: =COUNTIF(D$10:D21,D21) -> 1 | F21: 1.5 | G21: =Cloud[[#This Row],[Cloud 1]] -> 9 | J21: Stacked Column | K21: Stacked: Cloud 1
D22: 27 | E22: =COUNTIF(D$10:D22,D22) -> 2 | F22: 1.6 | G22: =Cloud[[#This Row],[Cloud 1]] -> 27 | J22: Base 25th | K22: =K15 -> 20.5
D23: 29 | E23: =COUNTIF(D$10:D23,D23) -> 1 | F23: 1.5 | G23: =Cloud[[#This Row],[Cloud 1]] -> 29 | J23: Bottom 25-50 | K23: =K16-K15 -> 23
D24: 70 | E24: =COUNTIF(D$10:D24,D24) -> 1 | F24: 1.5 | G24: =Cloud[[#This Row],[Cloud 1]] -> 70 | J24: Top 50-75 | K24: =K17-K16 -> 21.25
D25: 12 | E25: =COUNTIF(D$10:D25,D25) -> 1 | F25: 1.5 | G25: =Cloud[[#This Row],[Cloud 1]] -> 12
D26: 43 | E26: =COUNTIF(D$10:D26,D26) -> 1 | F26: 1.5 | G26: =Cloud[[#This Row],[Cloud 1]] -> 43 | J26: x | K26: 1
D27: 39 | E27: =COUNTIF(D$10:D27,D27) -> 1 | F27: 1.5 | G27: =Cloud[[#This Row],[Cloud 1]] -> 39 | J27: y | K27: =K16 -> 43.5
D28: 53 | E28: =COUNTIF(D$10:D28,D28) -> 2 | F28: 1.6 | G28: =Cloud[[#This Row],[Cloud 1]] -> 53
D29: 68 | E29: =COUNTIF(D$10:D29,D29) -> 1 | F29: 1.5 | G29: =Cloud[[#This Row],[Cloud 1]] -> 68 | J29: Error Bar Length
D30: 60 | E30: =COUNTIF(D$10:D30,D30) -> 1 | F30: 1.5 | G30: =Cloud[[#This Row],[Cloud 1]] -> 60 | J30: Positive | K30: =-K16+K18 -> 46.5
D31: 8 | E31: =COUNTIF(D$10:D31,D31) -> 1 | F31: 1.5 | G31: =Cloud[[#This Row],[Cloud 1]] -> 8 | J31: Negative | K31: =K16-K14 -> 31.6
D32: 8 | E32: =COUNTIF(D$10:D32,D32) -> 2 | F32: 1.6 | G32: =Cloud[[#This Row],[Cloud 1]] -> 8
D33: 31 | E33: =COUNTIF(D$10:D33,D33) -> 2 | F33: 1.7 | G33: =Cloud[[#This Row],[Cloud 1]] -> 31
D34: 19 | E34: =COUNTIF(D$10:D34,D34) -> 1 | F34: 1.5 | G34: =Cloud[[#This Row],[Cloud 1]] -> 19
D35: 56 | E35: =COUNTIF(D$10:D35,D35) -> 1 | F35: 1.5 | G35: =Cloud[[#This Row],[Cloud 1]] -> 56
D36: 67 | E36: =COUNTIF(D$10:D36,D36) -> 1 | F36: 1.5 | G36: =Cloud[[#This Row],[Cloud 1]] -> 67
D37: 90 | E37: =COUNTIF(D$10:D37,D37) -> 2 | F37: 1.6 | G37: =Cloud[[#This Row],[Cloud 1]] -> 90
D38: 28 | E38: =COUNTIF(D$10:D38,D38) -> 1 | F38: 1.5 | G38: =Cloud[[#This Row],[Cloud 1]] -> 28
D39: 11 | E39: =COUNTIF(D$10:D39,D39) -> 1 | F39: 1.5 | G39: =Cloud[[#This Row],[Cloud 1]] -> 11
D40: 62 | E40: =COUNTIF(D$10:D40,D40) -> 1 | F40: 1.5 | G40: =Cloud[[#This Row],[Cloud 1]] -> 62
D41: 50 | E41: =COUNTIF(D$10:D41,D41) -> 1 | F41: 1.5 | G41: =Cloud[[#This Row],[Cloud 1]] -> 50
D42: 48 | E42: =COUNTIF(D$10:D42,D42) -> 1 | F42: =IF(E42=1,$K$9,F41+$K$10) -> 1.5 | G42: =Cloud[[#This Row],[Cloud 1]] -> 48
D43: 21 | E43: =COUNTIF(D$10:D43,D43) -> 1 | F43: 1.5 | G43: =Cloud[[#This Row],[Cloud 1]] -> 21
D44: 51 | E44: =COUNTIF(D$10:D44,D44) -> 1 | F44: 1.5 | G44: =Cloud[[#This Row],[Cloud 1]] -> 51
D45: 33 | E45: =COUNTIF(D$10:D45,D45) -> 1 | F45: 1.5 | G45: =Cloud[[#This Row],[Cloud 1]] -> 33
D46: 13 | E46: =COUNTIF(D$10:D46,D46) -> 1 | F46: 1.5 | G46: =Cloud[[#This Row],[Cloud 1]] -> 13
D47: 63 | E47: =COUNTIF(D$10:D47,D47) -> 1 | F47: 1.5 | G47: =Cloud[[#This Row],[Cloud 1]] -> 63
D48: 73 | E48: =COUNTIF(D$10:D48,D48) -> 1 | F48: 1.5 | G48: =Cloud[[#This Row],[Cloud 1]] -> 73
D49: 99 | E49: =COUNTIF(D$10:D49,D49) -> 1 | F49: 1.5 | G49: =Cloud[[#This Row],[Cloud 1]] -> 99
D50: 38 | E50: =COUNTIF(D$10:D50,D50) -> 1 | F50: 1.5 | G50: =Cloud[[#This Row],[Cloud 1]] -> 38
D51: 67 | E51: =COUNTIF(D$10:D51,D51) -> 2 | F51: 1.6 | G51: =Cloud[[#This Row],[Cloud 1]] -> 67
D52: 1 | E52: =COUNTIF(D$10:D52,D52) -> 1 | F52: 1.5 | G52: =Cloud[[#This Row],[Cloud 1]] -> 1
D53: 68 | E53: =COUNTIF(D$10:D53,D53) -> 2 | F53: 1.6 | G53: =Cloud[[#This Row],[Cloud 1]] -> 68
D54: 12 | E54: =COUNTIF(D$10:D54,D54) -> 2 | F54: 1.7 | G54: =Cloud[[#This Row],[Cloud 1]] -> 12
D55: 10 | E55: =COUNTIF(D$10:D55,D55) -> 1 | F55: 1.5 | G55: =Cloud[[#This Row],[Cloud 1]] -> 10
D56: 92 | E56: =COUNTIF(D$10:D56,D56) -> 2 | F56: 1.6 | G56: =Cloud[[#This Row],[Cloud 1]] -> 92
D57: 68 | E57: =COUNTIF(D$10:D57,D57) -> 3 | F57: 1.7 | G57: =Cloud[[#This Row],[Cloud 1]] -> 68
D58: 29 | E58: =COUNTIF(D$10:D58,D58) -> 2 | F58: 1.8 | G58: =Cloud[[#This Row],[Cloud 1]] -> 29
D59: 31 | E59: =COUNTIF(D$10:D59,D59) -> 3 | F59: 1.9 | G59: =Cloud[[#This Row],[Cloud 1]] -> 31
D60: 34 | E60: =COUNTIF(D$10:D60,D60) -> 1 | F60: 1.5 | G60: =Cloud[[#This Row],[Cloud 1]] -> 34
D61: 12 | E61: =COUNTIF(D$10:D61,D61) -> 3 | F61: 1.6 | G61: =Cloud[[#This Row],[Cloud 1]] -> 12
D62: 78 | E62: =COUNTIF(D$10:D62,D62) -> 1 | F62: 1.5 | G62: =Cloud[[#This Row],[Cloud 1]] -> 78
D63: 28 | E63: =COUNTIF(D$10:D63,D63) -> 2 | F63: 1.6 | G63: =Cloud[[#This Row],[Cloud 1]] -> 28
D64: 64 | E64: =COUNTIF(D$10:D64,D64) -> 1 | F64: 1.5 | G64: =Cloud[[#This Row],[Cloud 1]] -> 64
D65: 60 | E65: =COUNTIF(D$10:D69,D65) -> 2 | F65: 1.6 | G65: =Cloud[[#This Row],[Cloud 1]] -> 60
D66: 56 | E66: =COUNTIF(D$10:D66,D66) -> 2 | F66: 1.7 | G66: =Cloud[[#This Row],[Cloud 1]] -> 56
D67: 52 | E67: =COUNTIF(D$10:D67,D67) -> 1 | F67: 1.5 | G67: =Cloud[[#This Row],[Cloud 1]] -> 52
D68: 48 | E68: =COUNTIF(D$10:D68,D68) -> 2 | F68: 1.6 | G68: =Cloud[[#This Row],[Cloud 1]] -> 48
D69: 44 | E69: =COUNTIF(D$10:D69,D69) -> 1 | F69: 1.5 | G69: =Cloud[[#This Row],[Cloud 1]] -> 44

Sheet Vertical Raincloud - 3 Clouds
A1: =IF(ISERROR(RIGHT(CELL("filename",A1),LEN(CELL("filename",A1))-FIND("]",CELL("filename",A1)))), "", RIGHT(CELL("filename",A1),LEN(CELL("filename",A1))-FIND("]",CELL("filename",A1)))) -> Vertical Raincloud - 3 Clouds
A2: =Model_Name -> SP Vertical RainCloud Chart - Complete.xlsm
A3: Navigator
B4: Error Checks: | F4: =Overall_Error_Check -> 0
B6: =MAX($B$5:$B5)+1 -> 1 | C6: Vertical Raincloud Chart
D9: Cloud 1 | E9: Cloud 2 | F9: Cloud 3 | G9: Cloud 1: 1st position | H9: Cloud 2: 1st position | I9: Cloud 3: 1st position | J9: Cloud 1: X-position | K9: Cloud 2: X-position | L9: Cloud 3: X-position | M9: Cloud 1: Distribution | N9: Cloud 2: Distribution | O9: Cloud 3: Distribution | Q9: Location | R9: 1.5 | S9: 2.5 | T9: 3.5
D10: 27 | E10: 182 | F10: 251 | G10: =COUNTIF(D$10:D10,D10) -> 1 | H10: =COUNTIF(E$10:E10,E10) -> 1 | I10: =COUNTIF(F$10:F10,F10) -> 1 | J10: =IF(G10=1,$R$9,J9+$R$10) -> 1.5 | K10: =IF(H10=1,$S$9,K9+$S$10) -> 2.5 | L10: =IF(I10=1,$T$9,L9+$T$10) -> 3.5 | M10: =Clouds[[#This Row],[Cloud 1]] -> 27 | N10: =Clouds[[#This Row],[Cloud 2]] -> 182 | O10: =Clouds[[#This Row],[Cloud 3]] -> 251 | Q10: Length | R10: 0.1 | S10: 0.1 | T10: 0.1
D11: 18 | E11: 172 | F11: 259 | G11: =COUNTIF(D$10:D11,D11) -> 1 | H11: =COUNTIF(E$10:E11,E11) -> 1 | I11: =COUNTIF(F$10:F11,F11) -> 1 | J11: 1.5 | K11: 2.5 | L11: 3.5 | M11: =Clouds[[#This Row],[Cloud 1]] -> 18 | N11: =Clouds[[#This Row],[Cloud 2]] -> 172 | O11: =Clouds[[#This Row],[Cloud 3]] -> 259
D12: 95 | E12: 182 | F12: 250 | G12: =COUNTIF(D$10:D12,D12) -> 1 | H12: =COUNTIF(E$10:E12,E12) -> 2 | I12: =COUNTIF(F$10:F12,F12) -> 1 | J12: 1.5 | K12: 2.6 | L12: 3.5 | M12: =Clouds[[#This Row],[Cloud 1]] -> 95 | N12: =Clouds[[#This Row],[Cloud 2]] -> 182 | O12: =Clouds[[#This Row],[Cloud 3]] -> 250 | Q12: Percentile | R12: Percentile: Cloud 1 | S12: Percentile: Cloud 2 | T12: Percentile: Cloud 3
D13: 90 | E13: 189 | F13: 290 | G13: =COUNTIF(D$10:D13,D13) -> 1 | H13: =COUNTIF(E$10:E13,E13) -> 1 | I13: =COUNTIF(F$10:F13,F13) -> 1 | J13: 1.5 | K13: 2.5 | L13: 3.5 | M13: =Clouds[[#This Row],[Cloud 1]] -> 90 | N13: =Clouds[[#This Row],[Cloud 2]] -> 189 | O13: =Clouds[[#This Row],[Cloud 3]] -> 290 | Q13: 0 | R13: =PERCENTILE(Clouds[Cloud 1],Percentile_Tables[[#This Row],[Percentile]]) -> 1 | S13: =PERCENTILE(Clouds[Cloud 2],Percentile_Tables[[#This Row],[Percentile]]) -> 102 | T13: =PERCENTILE(Clouds[Cloud 3],Percentile_Tables[[#This Row],[Percentile]]) -> 204
D14: 53 | E14: 191 | F14: 297 | G14: =COUNTIF(D$10:D14,D14) -> 1 | H14: =COUNTIF(E$10:E14,E14) -> 1 | I14: =COUNTIF(F$10:F14,F14) -> 1 | J14: 1.5 | K14: 2.5 | L14: 3.5 | M14: =Clouds[[#This Row],[Cloud 1]] -> 53 | N14: =Clouds[[#This Row],[Cloud 2]] -> 191 | O14: =Clouds[[#This Row],[Cloud 3]] -> 297 | Q14: 0.1 | R14: =PERCENTILE(Clouds[Cloud 1],Percentile_Tables[[#This Row],[Percentile]]) -> 11.9 | S14: =PERCENTILE(Clouds[Cloud 2],Percentile_Tables[[#This Row],[Percentile]]) -> 112.8 | T14: =PERCENTILE(Clouds[Cloud 3],Percentile_Tables[[#This Row],[Percentile]]) -> 210.8
D15: 17 | E15: 123 | F15: 257 | G15: =COUNTIF(D$10:D15,D15) -> 1 | H15: =COUNTIF(E$10:E15,E15) -> 1 | I15: =COUNTIF(F$10:F15,F15) -> 1 | J15: 1.5 | K15: 2.5 | L15: 3.5 | M15: =Clouds[[#This Row],[Cloud 1]] -> 17 | N15: =Clouds[[#This Row],[Cloud 2]] -> 123 | O15: =Clouds[[#This Row],[Cloud 3]] -> 257 | Q15: 0.25 | R15: =PERCENTILE(Clouds[Cloud 1],Percentile_Tables[[#This Row],[Percentile]]) -> 20.5 | S15: =PERCENTILE(Clouds[Cloud 2],Percentile_Tables[[#This Row],[Percentile]]) -> 123.75 | T15: =PERCENTILE(Clouds[Cloud 3],Percentile_Tables[[#This Row],[Percentile]]) -> 223
D16: 92 | E16: 102 | F16: 223 | G16: =COUNTIF(D$10:D16,D16) -> 1 | H16: =COUNTIF(E$10:E16,E16) -> 1 | I16: =COUNTIF(F$10:F16,F16) -> 1 | J16: 1.5 | K16: 2.5 | L16: 3.5 | M16: =Clouds[[#This Row],[Cloud 1]] -> 92 | N16: =Clouds[[#This Row],[Cloud 2]] -> 102 | O16: =Clouds[[#This Row],[Cloud 3]] -> 223 | Q16: 0.5 | R16: =PERCENTILE(Clouds[Cloud 1],Percentile_Tables[[#This Row],[Percentile]]) -> 43.5 | S16: =PERCENTILE(Clouds[Cloud 2],Percentile_Tables[[#This Row],[Percentile]]) -> 155 | T16: =PERCENTILE(Clouds[Cloud 3],Percentile_Tables[[#This Row],[Percentile]]) -> 250
D17: 93 | E17: 150 | F17: 248 | G17: =COUNTIF(D$10:D17,D17) -> 1 | H17: =COUNTIF(E$10:E17,E17) -> 1 | I17: =COUNTIF(F$10:F17,F17) -> 1 | J17: 1.5 | K17: 2.5 | L17: 3.5 | M17: =Clouds[[#This Row],[Cloud 1]] -> 93 | N17: =Clouds[[#This Row],[Cloud 2]] -> 150 | O17: =Clouds[[#This Row],[Cloud 3]] -> 248 | Q17: 0.75 | R17: =PERCENTILE(Clouds[Cloud 1],Percentile_Tables[[#This Row],[Percentile]]) -> 64.75 | S17: =PERCENTILE(Clouds[Cloud 2],Percentile_Tables[[#This Row],[Percentile]]) -> 182 | T17: =PERCENTILE(Clouds[Cloud 3],Percentile_Tables[[#This Row],[Percentile]]) -> 272.5
D18: 18 | E18: 175 | F18: 226 | G18: =COUNTIF(D$10:D18,D18) -> 2 | H18: =COUNTIF(E$10:E18,E18) -> 1 | I18: =COUNTIF(F$10:F18,F18) -> 1 | J18: 1.6 | K18: 2.5 | L18: 3.5 | M18: =Clouds[[#This Row],[Cloud 1]] -> 18 | N18: =Clouds[[#This Row],[Cloud 2]] -> 175 | O18: =Clouds[[#This Row],[Cloud 3]] -> 226 | Q18: 0.9 | R18: =PERCENTILE(Clouds[Cloud 1],Percentile_Tables[[#This Row],[Percentile]]) -> 90 | S18: =PERCENTILE(Clouds[Cloud 2],Percentile_Tables[[#This Row],[Percentile]]) -> 191.1 | T18: =PERCENTILE(Clouds[Cloud 3],Percentile_Tables[[#This Row],[Percentile]]) -> 290.2
D19: 15 | E19: 156 | F19: 274 | G19: =COUNTIF(D$10:D19,D19) -> 1 | H19: =COUNTIF(E$10:E19,E19) -> 1 | I19: =COUNTIF(F$10:F19,F19) -> 1 | J19: 1.5 | K19: 2.5 | L19: 3.5 | M19: =Clouds[[#This Row],[Cloud 1]] -> 15 | N19: =Clouds[[#This Row],[Cloud 2]] -> 156 | O19: =Clouds[[#This Row],[Cloud 3]] -> 274 | Q19: 1 | R19: =PERCENTILE(Clouds[Cloud 1],Percentile_Tables[[#This Row],[Percentile]]) -> 99 | S19: =PERCENTILE(Clouds[Cloud 2],Percentile_Tables[[#This Row],[Percentile]]) -> 200 | T19: =PERCENTILE(Clouds[Cloud 3],Percentile_Tables[[#This Row],[Percentile]]) -> 298
D20: 31 | E20: 105 | F20: 241 | G20: =COUNTIF(D$10:D20,D20) -> 1 | H20: =COUNTIF(E$10:E20,E20) -> 1 | I20: =COUNTIF(F$10:F20,F20) -> 1 | J20: 1.5 | K20: 2.5 | L20: 3.5 | M20: =Clouds[[#This Row],[Cloud 1]] -> 31 | N20: =Clouds[[#This Row],[Cloud 2]] -> 105 | O20: =Clouds[[#This Row],[Cloud 3]] -> 241
D21: 9 | E21: 168 | F21: 240 | G21: =COUNTIF(D$10:D21,D21) -> 1 | H21: =COUNTIF(E$10:E21,E21) -> 1 | I21: =COUNTIF(F$10:F21,F21) -> 1 | J21: 1.5 | K21: 2.5 | L21: 3.5 | M21: =Clouds[[#This Row],[Cloud 1]] -> 9 | N21: =Clouds[[#This Row],[Cloud 2]] -> 168 | O21: =Clouds[[#This Row],[Cloud 3]] -> 240 | Q21: Stacked Column | R21: Stacked: Cloud 1 | S21: Stacked: Cloud 2 | T21: Stacked: Cloud 3
D22: 27 | E22: 177 | F22: 293 | G22: =COUNTIF(D$10:D22,D22) -> 2 | H22: =COUNTIF(E$10:E22,E22) -> 1 | I22: =COUNTIF(F$10:F22,F22) -> 1 | J22: 1.6 | K22: 2.5 | L22: 3.5 | M22: =Clouds[[#This Row],[Cloud 1]] -> 27 | N22: =Clouds[[#This Row],[Cloud 2]] -> 177 | O22: =Clouds[[#This Row],[Cloud 3]] -> 293 | Q22: Base 25th | R22: =R15 -> 20.5 | S22: =S15 -> 123.75 | T22: 223
D23: 29 | E23: 117 | F23: 257 | G23: =COUNTIF(D$10:D23,D23) -> 1 | H23: =COUNTIF(E$10:E23,E23) -> 1 | I23: =COUNTIF(F$10:F23,F23) -> 2 | J23: 1.5 | K23: 2.5 | L23: 3.6 | M23: =Clouds[[#This Row],[Cloud 1]] -> 29 | N23: =Clouds[[#This Row],[Cloud 2]] -> 117 | O23: =Clouds[[#This Row],[Cloud 3]] -> 257 | Q23: Bottom 25-50 | R23: =R16-R15 -> 23 | S23: =S16-S15 -> 31.25 | T23: 27
D24: 70 | E24: 119 | F24: 298 | G24: =COUNTIF(D$10:D24,D24) -> 1 | H24: =COUNTIF(E$10:E24,E24) -> 1 | I24: =COUNTIF(F$10:F24,F24) -> 1 | J24: 1.5 | K24: 2.5 | L24: 3.5 | M24: =Clouds[[#This Row],[Cloud 1]] -> 70 | N24: =Clouds[[#This Row],[Cloud 2]] -> 119 | O24: =Clouds[[#This Row],[Cloud 3]] -> 298 | Q24: Top 50-75 | R24: =R17-R16 -> 21.25 | S24: =S17-S16 -> 27 | T24: 22.5
D25: 12 | E25: 144 | F25: 225 | G25: =COUNTIF(D$10:D25,D25) -> 1 | H25: =COUNTIF(E$10:E25,E25) -> 1 | I25: =COUNTIF(F$10:F25,F25) -> 1 | J25: 1.5 | K25: 2.5 | L25: 3.5 | M25: =Clouds[[#This Row],[Cloud 1]] -> 12 | N25: =Clouds[[#This Row],[Cloud 2]] -> 144 | O25: =Clouds[[#This Row],[Cloud 3]] -> 225
D26: 43 | E26: 125 | F26: 265 | G26: =COUNTIF(D$10:D26,D26) -> 1 | H26: =COUNTIF(E$10:E26,E26) -> 1 | I26: =COUNTIF(F$10:F26,F26) -> 1 | J26: 1.5 | K26: 2.5 | L26: 3.5 | M26: =Clouds[[#This Row],[Cloud 1]] -> 43 | N26: =Clouds[[#This Row],[Cloud 2]] -> 125 | O26: =Clouds[[#This Row],[Cloud 3]] -> 265 | Q26: x | R26: 1 | S26: 2 | T26: 3
D27: 39 | E27: 121 | F27: 272 | G27: =COUNTIF(D$10:D27,D27) -> 1 | H27: =COUNTIF(E$10:E27,E27) -> 1 | I27: =COUNTIF(F$10:F27,F27) -> 1 | J27: 1.5 | K27: 2.5 | L27: 3.5 | M27: =Clouds[[#This Row],[Cloud 1]] -> 39 | N27: =Clouds[[#This Row],[Cloud 2]] -> 121 | O27: =Clouds[[#This Row],[Cloud 3]] -> 272 | Q27: y | R27: =R16 -> 43.5 | S27: =S16 -> 155 | T27: 250
D28: 53 | E28: 200 | F28: 283 | G28: =COUNTIF(D$10:D28,D28) -> 2 | H28: =COUNTIF(E$10:E28,E28) -> 1 | I28: =COUNTIF(F$10:F28,F28) -> 1 | J28: 1.6 | K28: 2.5 | L28: 3.5 | M28: =Clouds[[#This Row],[Cloud 1]] -> 53 | N28: =Clouds[[#This Row],[Cloud 2]] -> 200 | O28: =Clouds[[#This Row],[Cloud 3]] -> 283
D29: 68 | E29: 138 | F29: 253 | G29: =COUNTIF(D$10:D29,D29) -> 1 | H29: =COUNTIF(E$10:E29,E29) -> 1 | I29: =COUNTIF(F$10:F29,F29) -> 1 | J29: 1.5 | K29: 2.5 | L29: 3.5 | M29: =Clouds[[#This Row],[Cloud 1]] -> 68 | N29: =Clouds[[#This Row],[Cloud 2]] -> 138 | O29: =Clouds[[#This Row],[Cloud 3]] -> 253 | Q29: Error Bar Length
D30: 60 | E30: 191 | F30: 224 | G30: =COUNTIF(D$10:D30,D30) -> 1 | H30: =COUNTIF(E$10:E30,E30) -> 2 | I30: =COUNTIF(F$10:F30,F30) -> 1 | J30: 1.5 | K30: 2.6 | L30: 3.5 | M30: =Clouds[[#This Row],[Cloud 1]] -> 60 | N30: =Clouds[[#This Row],[Cloud 2]] -> 191 | O30: =Clouds[[#This Row],[Cloud 3]] -> 224 | Q30: Positive | R30: =-R16+R18 -> 46.5 | S30: =-S16+S18 -> 36.1 | T30: 40.2
D31: 8 | E31: 105 | F31: 283 | G31: =COUNTIF(D$10:D31,D31) -> 1 | H31: =COUNTIF(E$10:E31,E31) -> 2 | I31: =COUNTIF(F$10:F31,F31) -> 2 | J31: 1.5 | K31: 2.7 | L31: 3.6 | M31: =Clouds[[#This Row],[Cloud 1]] -> 8 | N31: =Clouds[[#This Row],[Cloud 2]] -> 105 | O31: =Clouds[[#This Row],[Cloud 3]] -> 283 | Q31: Negative | R31: =R16-R14 -> 31.6 | S31: =S16-S14 -> 42.2 | T31: 39.2
D32: 8 | E32: 118 | F32: 223 | G32: =COUNTIF(D$10:D32,D32) -> 2 | H32: =COUNTIF(E$10:E32,E32) -> 1 | I32: =COUNTIF(F$10:F32,F32) -> 2 | J32: 1.6 | K32: 2.5 | L32: 3.7 | M32: =Clouds[[#This Row],[Cloud 1]] -> 8 | N32: =Clouds[[#This Row],[Cloud 2]] -> 118 | O32: =Clouds[[#This Row],[Cloud 3]] -> 223
D33: 31 | E33: 111 | F33: 226 | G33: =COUNTIF(D$10:D33,D33) -> 2 | H33: =COUNTIF(E$10:E33,E33) -> 1 | I33: =COUNTIF(F$10:F33,F33) -> 2 | J33: 1.7 | K33: 2.5 | L33: 3.8 | M33: =Clouds[[#This Row],[Cloud 1]] -> 31 | N33: =Clouds[[#This Row],[Cloud 2]] -> 111 | O33: =Clouds[[#This Row],[Cloud 3]] -> 226
D34: 19 | E34: 160 | F34: 253 | G34: =COUNTIF(D$10:D34,D34) -> 1 | H34: =COUNTIF(E$10:E34,E34) -> 1 | I34: =COUNTIF(F$10:F34,F34) -> 2 | J34: 1.5 | K34: 2.5 | L34: 3.9 | M34: =Clouds[[#This Row],[Cloud 1]] -> 19 | N34: =Clouds[[#This Row],[Cloud 2]] -> 160 | O34: =Clouds[[#This Row],[Cloud 3]] -> 253
D35: 56 | E35: 116 | F35: 229 | G35: =COUNTIF(D$10:D35,D35) -> 1 | H35: =COUNTIF(E$10:E35,E35) -> 1 | I35: =COUNTIF(F$10:F35,F35) -> 1 | J35: 1.5 | K35: 2.5 | L35: 3.5 | M35: =Clouds[[#This Row],[Cloud 1]] -> 56 | N35: =Clouds[[#This Row],[Cloud 2]] -> 116 | O35: =Clouds[[#This Row],[Cloud 3]] -> 229
D36: 67 | E36: 147 | F36: 211 | G36: =COUNTIF(D$10:D36,D36) -> 1 | H36: =COUNTIF(E$10:E36,E36) -> 1 | I36: =COUNTIF(F$10:F36,F36) -> 1 | J36: 1.5 | K36: 2.5 | L36: 3.5 | M36: =Clouds[[#This Row],[Cloud 1]] -> 67 | N36: =Clouds[[#This Row],[Cloud 2]] -> 147 | O36: =Clouds[[#This Row],[Cloud 3]] -> 211
D37: 90 | E37: 143 | F37: 230 | G37: =COUNTIF(D$10:D37,D37) -> 2 | H37: =COUNTIF(E$10:E37,E37) -> 1 | I37: =COUNTIF(F$10:F37,F37) -> 1 | J37: 1.6 | K37: 2.5 | L37: 3.5 | M37: =Clouds[[#This Row],[Cloud 1]] -> 90 | N37: =Clouds[[#This Row],[Cloud 2]] -> 143 | O37: =Clouds[[#This Row],[Cloud 3]] -> 230
D38: 28 | E38: 191 | F38: 254 | G38: =COUNTIF(D$10:D38,D38) -> 1 | H38: =COUNTIF(E$10:E38,E38) -> 3 | I38: =COUNTIF(F$10:F38,F38) -> 1 | J38: 1.5 | K38: 2.6 | L38: 3.5 | M38: =Clouds[[#This Row],[Cloud 1]] -> 28 | N38: =Clouds[[#This Row],[Cloud 2]] -> 191 | O38: =Clouds[[#This Row],[Cloud 3]] -> 254
D39: 11 | E39: 186 | F39: 250 | G39: =COUNTIF(D$10:D39,D39) -> 1 | H39: =COUNTIF(E$10:E39,E39) -> 1 | I39: =COUNTIF(F$10:F39,F39) -> 2 | J39: 1.5 | K39: 2.5 | L39: 3.6 | M39: =Clouds[[#This Row],[Cloud 1]] -> 11 | N39: =Clouds[[#This Row],[Cloud 2]] -> 186 | O39: =Clouds[[#This Row],[Cloud 3]] -> 250
D40: 62 | E40: 184 | F40: 217 | G40: =COUNTIF(D$10:D40,D40) -> 1 | H40: =COUNTIF(E$10:E40,E40) -> 1 | I40: =COUNTIF(F$10:F40,F40) -> 1 | J40: 1.5 | K40: 2.5 | L40: 3.5 | M40: =Clouds[[#This Row],[Cloud 1]] -> 62 | N40: =Clouds[[#This Row],[Cloud 2]] -> 184 | O40: =Clouds[[#This Row],[Cloud 3]] -> 217
D41: 50 | E41: 118 | F41: 209 | G41: =COUNTIF(D$10:D41,D41) -> 1 | H41: =COUNTIF(E$10:E41,E41) -> 2 | I41: =COUNTIF(F$10:F41,F41) -> 1 | J41: 1.5 | K41: 2.6 | L41: 3.5 | M41: =Clouds[[#This Row],[Cloud 1]] -> 50 | N41: =Clouds[[#This Row],[Cloud 2]] -> 118 | O41: =Clouds[[#This Row],[Cloud 3]] -> 209
D42: 48 | E42: 174 | F42: 225 | G42: =COUNTIF(D$10:D42,D42) -> 1 | H42: =COUNTIF(E$10:E42,E42) -> 1 | I42: =COUNTIF(F$10:F42,F42) -> 2 | J42: =IF(G42=1,$R$9,J41+$R$10) -> 1.5 | K42: =IF(H42=1,$S$9,K41+$S$10) -> 2.5 | L42: =IF(I42=1,$T$9,L41+$T$10) -> 3.6 | M42: =Clouds[[#This Row],[Cloud 1]] -> 48 | N42: =Clouds[[#This Row],[Cloud 2]] -> 174 | O42: =Clouds[[#This Row],[Cloud 3]] -> 225
D43: 21 | E43: 192 | F43: 280 | G43: =COUNTIF(D$10:D43,D43) -> 1 | H43: =COUNTIF(E$10:E43,E43) -> 1 | I43: =COUNTIF(F$10:F43,F43) -> 1 | J43: 1.5 | K43: 2.5 | L43: 3.5 | M43: =Clouds[[#This Row],[Cloud 1]] -> 21 | N43: =Clouds[[#This Row],[Cloud 2]] -> 192 | O43: =Clouds[[#This Row],[Cloud 3]] -> 280
D44: 51 | E44: 154 | F44: 292 | G44: =COUNTIF(D$10:D44,D44) -> 1 | H44: =COUNTIF(E$10:E44,E44) -> 1 | I44: =COUNTIF(F$10:F44,F44) -> 1 | J44: 1.5 | K44: 2.5 | L44: 3.5 | M44: =Clouds[[#This Row],[Cloud 1]] -> 51 | N44: =Clouds[[#This Row],[Cloud 2]] -> 154 | O44: =Clouds[[#This Row],[Cloud 3]] -> 292
D45: 33 | E45: 160 | F45: 213 | G45: =COUNTIF(D$10:D45,D45) -> 1 | H45: =COUNTIF(E$10:E45,E45) -> 2 | I45: =COUNTIF(F$10:F45,F45) -> 1 | J45: 1.5 | K45: 2.6 | L45: 3.5 | M45: =Clouds[[#This Row],[Cloud 1]] -> 33 | N45: =Clouds[[#This Row],[Cloud 2]] -> 160 | O45: =Clouds[[#This Row],[Cloud 3]] -> 213
D46: 13 | E46: 124 | F46: 242 | G46: =COUNTIF(D$10:D46,D46) -> 1 | H46: =COUNTIF(E$10:E46,E46) -> 1 | I46: =COUNTIF(F$10:F46,F46) -> 1 | J46: 1.5 | K46: 2.5 | L46: 3.5 | M46: =Clouds[[#This Row],[Cloud 1]] -> 13 | N46: =Clouds[[#This Row],[Cloud 2]] -> 124 | O46: =Clouds[[#This Row],[Cloud 3]] -> 242
D47: 63 | E47: 113 | F47: 290 | G47: =COUNTIF(D$10:D47,D47) -> 1 | H47: =COUNTIF(E$10:E47,E47) -> 1 | I47: =COUNTIF(F$10:F47,F47) -> 2 | J47: 1.5 | K47: 2.5 | L47: 3.6 | M47: =Clouds[[#This Row],[Cloud 1]] -> 63 | N47: =Clouds[[#This Row],[Cloud 2]] -> 113 | O47: =Clouds[[#This Row],[Cloud 3]] -> 290
D48: 73 | E48: 146 | F48: 290 | G48: =COUNTIF(D$10:D48,D48) -> 1 | H48: =COUNTIF(E$10:E48,E48) -> 1 | I48: =COUNTIF(F$10:F48,F48) -> 3 | J48: 1.5 | K48: 2.5 | L48: 3.7 | M48: =Clouds[[#This Row],[Cloud 1]] -> 73 | N48: =Clouds[[#This Row],[Cloud 2]] -> 146 | O48: =Clouds[[#This Row],[Cloud 3]] -> 290
D49: 99 | E49: 149 | F49: 206 | G49: =COUNTIF(D$10:D49,D49) -> 1 | H49: =COUNTIF(E$10:E49,E49) -> 1 | I49: =COUNTIF(F$10:F49,F49) -> 1 | J49: 1.5 | K49: 2.5 | L49: 3.5 | M49: =Clouds[[#This Row],[Cloud 1]] -> 99 | N49: =Clouds[[#This Row],[Cloud 2]] -> 149 | O49: =Clouds[[#This Row],[Cloud 3]] -> 206
D50: 38 | E50: 127 | F50: 208 | G50: =COUNTIF(D$10:D50,D50) -> 1 | H50: =COUNTIF(E$10:E50,E50) -> 1 | I50: =COUNTIF(F$10:F50,F50) -> 1 | J50: 1.5 | K50: 2.5 | L50: 3.5 | M50: =Clouds[[#This Row],[Cloud 1]] -> 38 | N50: =Clouds[[#This Row],[Cloud 2]] -> 127 | O50: =Clouds[[#This Row],[Cloud 3]] -> 208
D51: 67 | E51: 198 | F51: 252 | G51: =COUNTIF(D$10:D51,D51) -> 2 | H51: =COUNTIF(E$10:E51,E51) -> 1 | I51: =COUNTIF(F$10:F51,F51) -> 1 | J51: 1.6 | K51: 2.5 | L51: 3.5 | M51: =Clouds[[#This Row],[Cloud 1]] -> 67 | N51: =Clouds[[#This Row],[Cloud 2]] -> 198 | O51: =Clouds[[#This Row],[Cloud 3]] -> 252
D52: 1 | E52: 179 | F52: 285 | G52: =COUNTIF(D$10:D52,D52) -> 1 | H52: =COUNTIF(E$10:E52,E52) -> 1 | I52: =COUNTIF(F$10:F52,F52) -> 1 | J52: 1.5 | K52: 2.5 | L52: 3.5 | M52: =Clouds[[#This Row],[Cloud 1]] -> 1 | N52: =Clouds[[#This Row],[Cloud 2]] -> 179 | O52: =Clouds[[#This Row],[Cloud 3]] -> 285
D53: 68 | E53: 153 | F53: 217 | G53: =COUNTIF(D$10:D53,D53) -> 2 | H53: =COUNTIF(E$10:E53,E53) -> 1 | I53: =COUNTIF(F$10:F53,F53) -> 2 | J53: 1.6 | K53: 2.5 | L53: 3.6 | M53: =Clouds[[#This Row],[Cloud 1]] -> 68 | N53: =Clouds[[#This Row],[Cloud 2]] -> 153 | O53: =Clouds[[#This Row],[Cloud 3]] -> 217
D54: 12 | E54: 190 | F54: 295 | G54: =COUNTIF(D$10:D54,D54) -> 2 | H54: =COUNTIF(E$10:E54,E54) -> 1 | I54: =COUNTIF(F$10:F54,F54) -> 1 | J54: 1.7 | K54: 2.5 | L54: 3.5 | M54: =Clouds[[#This Row],[Cloud 1]] -> 12 | N54: =Clouds[[#This Row],[Cloud 2]] -> 190 | O54: =Clouds[[#This Row],[Cloud 3]] -> 295
D55: 10 | E55: 116 | F55: 237 | G55: =COUNTIF(D$10:D55,D55) -> 1 | H55: =COUNTIF(E$10:E55,E55) -> 2 | I55: =COUNTIF(F$10:F55,F55) -> 1 | J55: 1.5 | K55: 2.6 | L55: 3.5 | M55: =Clouds[[#This Row],[Cloud 1]] -> 10 | N55: =Clouds[[#This Row],[Cloud 2]] -> 116 | O55: =Clouds[[#This Row],[Cloud 3]] -> 237
D56: 92 | E56: 196 | F56: 240 | G56: =COUNTIF(D$10:D56,D56) -> 2 | H56: =COUNTIF(E$10:E56,E56) -> 1 | I56: =COUNTIF(F$10:F56,F56) -> 2 | J56: 1.6 | K56: 2.5 | L56: 3.6 | M56: =Clouds[[#This Row],[Cloud 1]] -> 92 | N56: =Clouds[[#This Row],[Cloud 2]] -> 196 | O56: =Clouds[[#This Row],[Cloud 3]] -> 240
D57: 68 | E57: 126 | F57: 265 | G57: =COUNTIF(D$10:D57,D57) -> 3 | H57: =COUNTIF(E$10:E57,E57) -> 1 | I57: =COUNTIF(F$10:F57,F57) -> 2 | J57: 1.7 | K57: 2.5 | L57: 3.7 | M57: =Clouds[[#This Row],[Cloud 1]] -> 68 | N57: =Clouds[[#This Row],[Cloud 2]] -> 126 | O57: =Clouds[[#This Row],[Cloud 3]] -> 265
D58: 29 | E58: 107 | F58: 216 | G58: =COUNTIF(D$10:D58,D58) -> 2 | H58: =COUNTIF(E$10:E58,E58) -> 1 | I58: =COUNTIF(F$10:F58,F58) -> 1 | J58: 1.8 | K58: 2.5 | L58: 3.5 | M58: =Clouds[[#This Row],[Cloud 1]] -> 29 | N58: =Clouds[[#This Row],[Cloud 2]] -> 107 | O58: =Clouds[[#This Row],[Cloud 3]] -> 216
D59: 31 | E59: 149 | F59: 252 | G59: =COUNTIF(D$10:D59,D59) -> 3 | H59: =COUNTIF(E$10:E59,E59) -> 2 | I59: =COUNTIF(F$10:F59,F59) -> 2 | J59: 1.9 | K59: 2.6 | L59: 3.6 | M59: =Clouds[[#This Row],[Cloud 1]] -> 31 | N59: =Clouds[[#This Row],[Cloud 2]] -> 149 | O59: =Clouds[[#This Row],[Cloud 3]] -> 252
D60: 34 | E60: 167 | F60: 216 | G60: =COUNTIF(D$10:D60,D60) -> 1 | H60: =COUNTIF(E$10:E60,E60) -> 1 | I60: =COUNTIF(F$10:F60,F60) -> 2 | J60: 1.5 | K60: 2.5 | L60: 3.7 | M60: =Clouds[[#This Row],[Cloud 1]] -> 34 | N60: =Clouds[[#This Row],[Cloud 2]] -> 167 | O60: =Clouds[[#This Row],[Cloud 3]] -> 216
D61: 12 | E61: 181 | F61: 204 | G61: =COUNTIF(D$10:D61,D61) -> 3 | H61: =COUNTIF(E$10:E61,E61) -> 1 | I61: =COUNTIF(F$10:F61,F61) -> 1 | J61: 1.6 | K61: 2.5 | L61: 3.5 | M61: =Clouds[[#This Row],[Cloud 1]] -> 12 | N61: =Clouds[[#This Row],[Cloud 2]] -> 181 | O61: =Clouds[[#This Row],[Cloud 3]] -> 204
D62: 78 | E62: 173 | F62: 290 | G62: =COUNTIF(D$10:D62,D62) -> 1 | H62: =COUNTIF(E$10:E62,E62) -> 1 | I62: =COUNTIF(F$10:F62,F62) -> 4 | J62: 1.5 | K62: 2.5 | L62: 3.6 | M62: =Clouds[[#This Row],[Cloud 1]] -> 78 | N62: =Clouds[[#This Row],[Cloud 2]] -> 173 | O62: =Clouds[[#This Row],[Cloud 3]] -> 290
D63: 28 | E63: 182 | F63: 206 | G63: =COUNTIF(D$10:D63,D63) -> 2 | H63: =COUNTIF(E$10:E63,E63) -> 3 | I63: =COUNTIF(F$10:F63,F63) -> 2 | J63: 1.6 | K63: 2.6 | L63: 3.7 | M63: =Clouds[[#This Row],[Cloud 1]] -> 28 | N63: =Clouds[[#This Row],[Cloud 2]] -> 182 | O63: =Clouds[[#This Row],[Cloud 3]] -> 206
D64: 64 | E64: 196 | F64: 218 | G64: =COUNTIF(D$10:D64,D64) -> 1 | H64: =COUNTIF(E$10:E64,E64) -> 2 | I64: =COUNTIF(F$10:F64,F64) -> 1 | J64: 1.5 | K64: 2.7 | L64: 3.5 | M64: =Clouds[[#This Row],[Cloud 1]] -> 64 | N64: =Clouds[[#This Row],[Cloud 2]] -> 196 | O64: =Clouds[[#This Row],[Cloud 3]] -> 218
D65: 60 | E65: 191 | F65: 262 | G65: =COUNTIF(D$10:D69,D65) -> 2 | H65: =COUNTIF(E$10:E65,E65) -> 4 | I65: =COUNTIF(F$10:F65,F65) -> 1 | J65: 1.6 | K65: 2.8 | L65: 3.5 | M65: =Clouds[[#This Row],[Cloud 1]] -> 60 | N65: =Clouds[[#This Row],[Cloud 2]] -> 191 | O65: =Clouds[[#This Row],[Cloud 3]] -> 262
D66: 56 | E66: 106 | F66: 295 | G66: =COUNTIF(D$10:D66,D66) -> 2 | H66: =COUNTIF(E$10:E66,E66) -> 1 | I66: =COUNTIF(F$10:F66,F66) -> 2 | J66: 1.7 | K66: 2.5 | L66: 3.6 | M66: =Clouds[[#This Row],[Cloud 1]] -> 56 | N66: =Clouds[[#This Row],[Cloud 2]] -> 106 | O66: =Clouds[[#This Row],[Cloud 3]] -> 295
D67: 52 | E67: 164 | F67: 206 | G67: =COUNTIF(D$10:D67,D67) -> 1 | H67: =COUNTIF(E$10:E67,E67) -> 1 | I67: =COUNTIF(F$10:F67,F67) -> 3 | J67: 1.5 | K67: 2.5 | L67: 3.7 | M67: =Clouds[[#This Row],[Cloud 1]] -> 52 | N67: =Clouds[[#This Row],[Cloud 2]] -> 164 | O67: =Clouds[[#This Row],[Cloud 3]] -> 206
D68: 48 | E68: 197 | F68: 211 | G68: =COUNTIF(D$10:D68,D68) -> 2 | H68: =COUNTIF(E$10:E68,E68) -> 1 | I68: =COUNTIF(F$10:F68,F68) -> 2 | J68: 1.6 | K68: 2.5 | L68: 3.8 | M68: =Clouds[[#This Row],[Cloud 1]] -> 48 | N68: =Clouds[[#This Row],[Cloud 2]] -> 197 | O68: =Clouds[[#This Row],[Cloud 3]] -> 211
D69: 44 | E69: 128 | F69: 262 | G69: =COUNTIF(D$10:D69,D69) -> 1 | H69: =COUNTIF(E$10:E69,E69) -> 1 | I69: =COUNTIF(F$10:F69,F69) -> 2 | J69: 1.5 | K69: 2.5 | L69: 3.9 | M69: =Clouds[[#This Row],[Cloud 1]] -> 44 | N69: =Clouds[[#This Row],[Cloud 2]] -> 128 | O69: =Clouds[[#This Row],[Cloud 3]] -> 262

Sheet Error Checks
A1: =IF(ISERROR(RIGHT(CELL("filename",A1),LEN(CELL("filename",A1))-FIND("]",CELL("filename",A1)))), "", RIGHT(CELL("filename",A1),LEN(CELL("filename",A1))-FIND("]",CELL("filename",A1)))) -> Error Checks
A2: =Model_Name -> SP Vertical RainCloud Chart - Complete.xlsm
A3: Navigator
B4: Error Checks: | F4: =Overall_Error_Check -> 0
B6: =MAX($B$5:$B5)+1 -> 1 | C6: Error Checks
C8: Summary of Errors
D10: Assumptions
E12: Example
E17: =C8 -> Summary of Errors | I17: =MIN(1,SUM(I11:I15)) -> 0
